[Event "*** Titled Tuesday Blitz"]
[Site "Chess.com"]
[Date "2019.12.03"]
[Round "2"]
[White "AnubisInmortal03"]
[Black "kuli4ik"]
[Result "0-1"]
[WhiteElo "2570"]
[BlackElo "2813"]
[TimeControl "180+2"]
[EndTime "13:26:40 PST"]
[Termination "kuli4ik won by checkmate"]

1. Nf3 {[%clk 0:03:01.8]} 1... g6 {[%clk 0:02:57.1]} 2. e3 {[%clk 0:03:00.9]}
2... Bg7 {[%clk 0:02:57.2]} 3. Be2 {[%clk 0:03:02.4]} 3... e5 {[%clk 0:02:57]}
4. d4 {[%clk 0:03:02.5]} 4... exd4 {[%clk 0:02:56.7]} 5. exd4 {[%clk 0:03:01.8]}
5... Nf6 {[%clk 0:02:56.5]} 6. O-O {[%clk 0:03:03]} 6... O-O {[%clk 0:02:54.6]}
7. c4 {[%clk 0:03:04.5]} 7... d5 {[%clk 0:02:49.4]} 8. Nc3 {[%clk 0:03:04.5]}
8... Re8 {[%clk 0:02:42.9]} 9. Bf4 {[%clk 0:03:03.5]} 9... c6 {[%clk 0:02:36.3]}
10. Re1 {[%clk 0:03:04.3]} 10... Be6 {[%clk 0:02:34.7]} 11. c5 {[%clk
0:03:04.2]} 11... Bg4 {[%clk 0:02:33.5]} 12. Ne5 {[%clk 0:02:55.9]} 12... Bxe2
{[%clk 0:02:34]} 13. Rxe2 {[%clk 0:02:57.5]} 13... Nbd7 {[%clk 0:02:34.1]} 14.
Qd2 {[%clk 0:02:51.3]} 14... Nh5 {[%clk 0:02:33.8]} 15. Bg5 {[%clk 0:02:39.4]}
15... Qc7 {[%clk 0:02:30.1]} 16. Nxd7 {[%clk 0:02:36.4]} 16... Rxe2 {[%clk
0:02:27.1]} 17. Nxe2 {[%clk 0:02:34.5]} 17... Qxd7 {[%clk 0:02:28]} 18. Be3
{[%clk 0:02:25.8]} 18... Nf6 {[%clk 0:02:25.4]} 19. Re1 {[%clk 0:02:19.4]} 19...
Re8 {[%clk 0:02:21.8]} 20. f3 {[%clk 0:02:19.2]} 20... Qe7 {[%clk 0:02:08.5]}
21. Nc3 {[%clk 0:02:16.4]} 21... Nd7 {[%clk 0:02:06.1]} 22. b4 {[%clk
0:02:03.9]} 22... Nf8 {[%clk 0:02:06]} 23. Bf2 {[%clk 0:02:02]} 23... Qd8 {[%clk
0:02:04.2]} 24. Rxe8 {[%clk 0:01:55.9]} 24... Qxe8 {[%clk 0:02:06.1]} 25. g3
{[%clk 0:01:53.3]} 25... Ne6 {[%clk 0:02:05.6]} 26. Kg2 {[%clk 0:01:53.6]} 26...
h5 {[%clk 0:02:04]} 27. h4 {[%clk 0:01:49.1]} 27... Qd7 {[%clk 0:01:59.5]} 28.
Ne2 {[%clk 0:01:49.7]} 28... Bf6 {[%clk 0:01:56.8]} 29. Qd3 {[%clk 0:01:48.9]}
29... a6 {[%clk 0:01:56.6]} 30. a4 {[%clk 0:01:50]} 30... Ng7 {[%clk 0:01:56.1]}
31. Be3 {[%clk 0:01:45.4]} 31... Nf5 {[%clk 0:01:56]} 32. Bf2 {[%clk 0:01:33.3]}
32... Qe8 {[%clk 0:01:54.1]} 33. Kh3 {[%clk 0:01:26.3]} 33... Qe6 {[%clk
0:01:51.3]} 34. Kg2 {[%clk 0:01:25.1]} 34... Kg7 {[%clk 0:01:51.3]} 35. Nf4
{[%clk 0:01:24.8]} 35... Qd7 {[%clk 0:01:45.3]} 36. Ne2 {[%clk 0:01:25.7]} 36...
Kg8 {[%clk 0:01:38.4]} 37. Nf4 {[%clk 0:01:23.8]} 37... Bd8 {[%clk 0:01:38.4]}
38. Ne2 {[%clk 0:01:16]} 38... Bc7 {[%clk 0:01:39.2]} 39. Nc3 {[%clk 0:01:05.4]}
39... Qe8 {[%clk 0:01:35.1]} 40. b5 {[%clk 0:01:04.9]} 40... axb5 {[%clk
0:01:34.6]} 41. axb5 {[%clk 0:01:06.8]} 41... Bd8 {[%clk 0:01:33.6]} 42. bxc6
{[%clk 0:01:02.7]} 42... bxc6 {[%clk 0:01:33.6]} 43. Ne2 {[%clk 0:01:04.3]}
43... Bf6 {[%clk 0:01:33.1]} 44. Nf4 {[%clk 0:01:05.6]} 44... Ng7 {[%clk
0:01:27.6]} 45. Ne2 {[%clk 0:01:05.2]} 45... Qc8 {[%clk 0:01:25.4]} 46. Be3
{[%clk 0:01:02]} 46... Qa8 {[%clk 0:01:23.2]} 47. Bf4 {[%clk 0:01:02.4]} 47...
Qa2 {[%clk 0:01:21.1]} 48. Kh3 {[%clk 0:00:59.6]} 48... Nf5 {[%clk 0:01:20.9]}
49. Be5 {[%clk 0:00:56.1]} 49... Bxe5 {[%clk 0:01:19.6]} 50. dxe5 {[%clk
0:00:58]} 50... Qa1 {[%clk 0:01:20.7]} 51. Kg2 {[%clk 0:00:40.6]} 51... Qxe5
{[%clk 0:01:20.3]} 52. Nf4 {[%clk 0:00:42.4]} 52... Nxh4+ {[%clk 0:01:17.8]} 53.
Kf2 {[%clk 0:00:43.5]} 53... Nf5 {[%clk 0:01:14.7]} 54. Ne2 {[%clk 0:00:44.6]}
54... Kg7 {[%clk 0:01:07.1]} 55. Qd2 {[%clk 0:00:38.2]} 55... h4 {[%clk
0:01:05.3]} 56. gxh4 {[%clk 0:00:38.9]} 56... Qh2+ {[%clk 0:01:04.2]} 57. Ke1
{[%clk 0:00:38.4]} 57... Qxh4+ {[%clk 0:01:03.1]} 58. Kd1 {[%clk 0:00:38.8]}
58... Qa4+ {[%clk 0:01:01.5]} 59. Ke1 {[%clk 0:00:39.5]} 59... Qc4 {[%clk
0:00:59.9]} 60. Qb2+ {[%clk 0:00:33.2]} 60... d4 {[%clk 0:00:59.9]} 61. Nf4
{[%clk 0:00:28.4]} 61... Qxc5 {[%clk 0:00:58.2]} 62. Nd3 {[%clk 0:00:25.9]}
62... Qd5 {[%clk 0:00:56.7]} 63. Kf2 {[%clk 0:00:25.5]} 63... Qc4 {[%clk
0:00:52.1]} 64. Ne5 {[%clk 0:00:24.8]} 64... Qc5 {[%clk 0:00:49.9]} 65. Ng4
{[%clk 0:00:22.6]} 65... Qc3 {[%clk 0:00:48.4]} 66. Qe2 {[%clk 0:00:22.3]} 66...
d3 {[%clk 0:00:47.9]} 67. Qd1 {[%clk 0:00:19.3]} 67... Qc2+ {[%clk 0:00:46.6]}
68. Ke1 {[%clk 0:00:20.9]} 68... Qxd1+ {[%clk 0:00:36.2]} 69. Kxd1 {[%clk
0:00:22.8]} 69... Nd4 {[%clk 0:00:37.2]} 70. Ne5 {[%clk 0:00:22]} 70... Kf6
{[%clk 0:00:36.8]} 71. Nxd3 {[%clk 0:00:21.6]} 71... Nxf3 {[%clk 0:00:37.8]} 72.
Ke2 {[%clk 0:00:23.3]} 72... Ne5 {[%clk 0:00:38.6]} 73. Nc5 {[%clk 0:00:23.5]}
73... Kf5 {[%clk 0:00:37.9]} 74. Ke3 {[%clk 0:00:24.6]} 74... g5 {[%clk
0:00:38.9]} 75. Ne4 {[%clk 0:00:23.1]} 75... f6 {[%clk 0:00:36.7]} 76. Nd6+
{[%clk 0:00:22.4]} 76... Ke6 {[%clk 0:00:37]} 77. Ne4 {[%clk 0:00:23.4]} 77...
Nf7 {[%clk 0:00:37.4]} 78. Kd4 {[%clk 0:00:24.1]} 78... f5 {[%clk 0:00:37.4]}
79. Nc5+ {[%clk 0:00:25.2]} 79... Kf6 {[%clk 0:00:38.5]} 80. Nd7+ {[%clk
0:00:25.4]} 80... Ke7 {[%clk 0:00:39.4]} 81. Nc5 {[%clk 0:00:25.5]} 81... g4
{[%clk 0:00:39.9]} 82. Ke3 {[%clk 0:00:25.8]} 82... Nd8 {[%clk 0:00:38.3]} 83.
Nd3 {[%clk 0:00:21.7]} 83... Ne6 {[%clk 0:00:38.7]} 84. Ne5 {[%clk 0:00:23.2]}
84... c5 {[%clk 0:00:39.7]} 85. Nd3 {[%clk 0:00:20.8]} 85... Kf6 {[%clk
0:00:40.3]} 86. Kf2 {[%clk 0:00:20]} 86... f4 {[%clk 0:00:40.9]} 87. Kg2 {[%clk
0:00:18.7]} 87... Kf5 {[%clk 0:00:41.7]} 88. Nf2 {[%clk 0:00:19.6]} 88... c4
{[%clk 0:00:42.4]} 89. Nd1 {[%clk 0:00:19.9]} 89... f3+ {[%clk 0:00:39.4]} 90.
Kg3 {[%clk 0:00:20.9]} 90... Nd4 {[%clk 0:00:32.8]} 91. Ne3+ {[%clk 0:00:20.1]}
91... Kg5 {[%clk 0:00:31.6]} 92. Nxg4 {[%clk 0:00:11.7]} 92... c3 {[%clk
0:00:32.1]} 93. Ne3 {[%clk 0:00:13]} 93... Kg6 {[%clk 0:00:29.6]} 94. Kf2 {[%clk
0:00:13.9]} 94... Kh5 {[%clk 0:00:29.1]} 95. Kg3 {[%clk 0:00:12.8]} 95... Kg5
{[%clk 0:00:29.8]} 96. Kf2 {[%clk 0:00:13.7]} 96... Kh4 {[%clk 0:00:29.7]} 97.
Nd5 {[%clk 0:00:02.2]} 97... c2 {[%clk 0:00:29.4]} 98. Nf4 {[%clk 0:00:03.2]}
98... c1=Q {[%clk 0:00:28.4]} 99. Ng2+ {[%clk 0:00:02.3]} 99... Kg5 {[%clk
0:00:27.3]} 100. Kg3 {[%clk 0:00:03.6]} 100... Qg1 {[%clk 0:00:24.4]} 101. Kh3
{[%clk 0:00:03.3]} 101... Qxg2# {[%clk 0:00:25.2]} 0-1

[Event "*** Titled Tuesday Blitz"]
[Site "Chess.com"]
[Date "2019.12.03"]
[Round "3"]
[White "LarissaSteenbekkers"]
[Black "ChessWarrior7197"]
[Result "0-1"]
[WhiteElo "1767"]
[BlackElo "2924"]
[TimeControl "180+2"]
[EndTime "13:33:04 PST"]
[Termination "ChessWarrior7197 won by resignation"]

1. e4 {[%clk 0:03:01.9]} 1... c5 {[%clk 0:02:59.7]} 2. Nf3 {[%clk 0:03:01.1]}
2... d6 {[%clk 0:03:01.2]} 3. d4 {[%clk 0:02:59.9]} 3... cxd4 {[%clk 0:03:03.1]}
4. Nxd4 {[%clk 0:03:00.5]} 4... Nf6 {[%clk 0:03:05]} 5. Nc3 {[%clk 0:03:00.1]}
5... a6 {[%clk 0:03:06.6]} 6. h3 {[%clk 0:02:59.1]} 6... e5 {[%clk 0:03:07.4]}
7. Nde2 {[%clk 0:02:56.8]} 7... b5 {[%clk 0:03:08.4]} 8. a4 {[%clk 0:02:54.2]}
8... b4 {[%clk 0:03:09.3]} 9. Nd5 {[%clk 0:02:47.5]} 9... Nxd5 {[%clk
0:03:10.5]} 10. exd5 {[%clk 0:02:47.1]} 10... Be7 {[%clk 0:03:10.2]} 11. g3
{[%clk 0:02:46.4]} 11... O-O {[%clk 0:03:11.2]} 12. Bg2 {[%clk 0:02:46.7]} 12...
a5 {[%clk 0:03:12.8]} 13. O-O {[%clk 0:02:45.7]} 13... Ba6 {[%clk 0:03:14.7]}
14. Re1 {[%clk 0:02:45]} 14... Nd7 {[%clk 0:03:16]} 15. c3 {[%clk 0:02:44]}
15... bxc3 {[%clk 0:03:15.9]} 16. Nxc3 {[%clk 0:02:43.3]} 16... f5 {[%clk
0:03:17.5]} 17. f4 {[%clk 0:02:42.6]} 17... e4 {[%clk 0:03:18.6]} 18. Be3 {[%clk
0:02:41.7]} 18... Rb8 {[%clk 0:03:18.3]} 19. Qd2 {[%clk 0:02:40.4]} 19... Bf6
{[%clk 0:03:19.5]} 20. Rab1 {[%clk 0:02:36]} 20... Rb4 {[%clk 0:03:20.5]} 21. g4
{[%clk 0:02:34.5]} 21... g6 {[%clk 0:03:18.2]} 22. b3 {[%clk 0:02:28]} 22... Qb8
{[%clk 0:03:17.9]} 23. Bf1 {[%clk 0:02:09.6]} 23... Bxf1 {[%clk 0:03:17.2]} 24.
Rxf1 {[%clk 0:02:09.8]} 24... Rxb3 {[%clk 0:03:18.7]} 25. Nb5 {[%clk 0:02:08.2]}
25... Rd3 {[%clk 0:03:17.5]} 26. Qe2 {[%clk 0:02:05.9]} 26... fxg4 {[%clk
0:03:13.7]} 27. hxg4 {[%clk 0:02:05.2]} 27... Bg7 {[%clk 0:03:11.6]} 28. Bd4
{[%clk 0:01:57.5]} 28... Rxd4 {[%clk 0:03:11.3]} 29. Nxd4 {[%clk 0:01:52.2]}
29... Bxd4+ {[%clk 0:03:13.2]} 30. Kg2 {[%clk 0:01:52.1]} 30... Qe8 {[%clk
0:03:14]} 31. Rb7 {[%clk 0:01:50.1]} 31... Nc5 {[%clk 0:03:14.7]} 32. f5 {[%clk
0:01:48.5]} 32... Nxb7 {[%clk 0:03:15.3]} 0-1

[Event "*** Titled Tuesday Blitz"]
[Site "Chess.com"]
[Date "2019.12.03"]
[Round "3"]
[White "BlueWizzard"]
[Black "fish7728"]
[Result "1-0"]
[WhiteElo "2738"]
[BlackElo "2141"]
[TimeControl "180+2"]
[EndTime "13:33:21 PST"]
[Termination "BlueWizzard won by resignation"]

1. d4 {[%clk 0:03:01.9]} 1... d5 {[%clk 0:02:59.1]} 2. Bf4 {[%clk 0:03:02.7]}
2... Nf6 {[%clk 0:02:58.9]} 3. e3 {[%clk 0:03:03.5]} 3... e6 {[%clk 0:02:57.7]}
4. a3 {[%clk 0:03:04.9]} 4... Bd6 {[%clk 0:02:56.7]} 5. Bg3 {[%clk 0:03:03.9]}
5... Ne4 {[%clk 0:02:51]} 6. c4 {[%clk 0:03:04.5]} 6... Nxg3 {[%clk 0:02:49.6]}
7. hxg3 {[%clk 0:03:06.4]} 7... c5 {[%clk 0:02:47.5]} 8. cxd5 {[%clk 0:03:02.9]}
8... exd5 {[%clk 0:02:47]} 9. Nc3 {[%clk 0:03:04.5]} 9... cxd4 {[%clk
0:02:36.4]} 10. Qxd4 {[%clk 0:03:04.9]} 10... Nc6 {[%clk 0:02:36.6]} 11. Qxg7
{[%clk 0:03:04.5]} 11... Be5 {[%clk 0:02:35]} 12. Qh6 {[%clk 0:03:05.1]} 12...
Bxc3+ {[%clk 0:02:15.3]} 13. bxc3 {[%clk 0:03:05.7]} 13... Qa5 {[%clk
0:02:15.8]} 14. Qf6 {[%clk 0:02:45.1]} 14... Rf8 {[%clk 0:02:13.5]} 15. Bd3
{[%clk 0:02:38.4]} 15... Be6 {[%clk 0:02:10.8]} 16. Ne2 {[%clk 0:02:38]} 16...
Ne7 {[%clk 0:01:58.5]} 17. Rb1 {[%clk 0:02:36.5]} 17... Qxa3 {[%clk 0:01:54.7]}
18. Rxb7 {[%clk 0:02:28.8]} 18... a6 {[%clk 0:01:49.9]} 19. O-O {[%clk
0:02:25.4]} 19... Nc6 {[%clk 0:01:40.7]} 20. Nf4 {[%clk 0:02:22.4]} 20... Qd6
{[%clk 0:01:38.4]} 21. Nh5 {[%clk 0:02:20.8]} 1-0

[Event "*** Titled Tuesday Blitz"]
[Site "Chess.com"]
[Date "2019.12.03"]
[Round "3"]
[White "Astaneh"]
[Black "norwaytoadog"]
[Result "1-0"]
[WhiteElo "2565"]
[BlackElo "2298"]
[TimeControl "180+2"]
[EndTime "13:34:33 PST"]
[Termination "Astaneh won by checkmate"]

1. d4 {[%clk 0:03:01.9]} 1... Nf6 {[%clk 0:03:00.2]} 2. c4 {[%clk 0:03:02.7]}
2... e6 {[%clk 0:03:01.1]} 3. g3 {[%clk 0:03:04]} 3... Bb4+ {[%clk 0:03:01.2]}
4. Nd2 {[%clk 0:03:04]} 4... O-O {[%clk 0:02:59.3]} 5. Bg2 {[%clk 0:03:05.1]}
5... c5 {[%clk 0:02:52.1]} 6. a3 {[%clk 0:03:04.4]} 6... Bxd2+ {[%clk 0:02:52]}
7. Qxd2 {[%clk 0:03:06.3]} 7... cxd4 {[%clk 0:02:49.1]} 8. Nf3 {[%clk
0:03:05.8]} 8... Nc6 {[%clk 0:02:47.1]} 9. Nxd4 {[%clk 0:03:05.5]} 9... a6
{[%clk 0:02:41.5]} 10. O-O {[%clk 0:03:05.5]} 10... Qc7 {[%clk 0:02:31.6]} 11.
b4 {[%clk 0:02:57.7]} 11... Rb8 {[%clk 0:01:58.6]} 12. Bb2 {[%clk 0:02:54.2]}
12... Ne7 {[%clk 0:01:36.6]} 13. Rac1 {[%clk 0:02:49.2]} 13... b6 {[%clk
0:01:31.2]} 14. b5 {[%clk 0:02:39.4]} 14... a5 {[%clk 0:01:25.4]} 15. a4 {[%clk
0:02:39.9]} 15... Bb7 {[%clk 0:01:20.8]} 16. Bxb7 {[%clk 0:02:41.1]} 16... Rxb7
{[%clk 0:01:17.7]} 17. Ba3 {[%clk 0:02:41.6]} 17... d6 {[%clk 0:01:13.6]} 18.
Rfd1 {[%clk 0:02:40.5]} 18... Rc8 {[%clk 0:01:00.4]} 19. Qd3 {[%clk 0:02:25.3]}
19... Ng6 {[%clk 0:00:51.8]} 20. Nf3 {[%clk 0:02:23.8]} 20... d5 {[%clk
0:00:46.8]} 21. cxd5 {[%clk 0:02:23.3]} 21... Qb8 {[%clk 0:00:41.1]} 22. dxe6
{[%clk 0:02:23.7]} 22... fxe6 {[%clk 0:00:39]} 23. Rxc8+ {[%clk 0:02:20]} 23...
Qxc8 {[%clk 0:00:39.9]} 24. Qd8+ {[%clk 0:02:21.4]} 24... Qxd8 {[%clk
0:00:40.9]} 25. Rxd8+ {[%clk 0:02:23.2]} 25... Kf7 {[%clk 0:00:42.1]} 26. Ng5#
{[%clk 0:02:24.7]} 1-0

[Event "*** Titled Tuesday Blitz"]
[Site "Chess.com"]
[Date "2019.12.03"]
[Round "3"]
[White "Korchmar_Vasiliy"]
[Black "Philosopherrr"]
[Result "1-0"]
[WhiteElo "2746"]
[BlackElo "2440"]
[TimeControl "180+2"]
[EndTime "13:34:49 PST"]
[Termination "Korchmar_Vasiliy won by resignation"]

1. d4 {[%clk 0:03:01.6]} 1... Nf6 {[%clk 0:03:00.7]} 2. c4 {[%clk 0:03:02.6]}
2... e6 {[%clk 0:03:01.1]} 3. g3 {[%clk 0:03:03.4]} 3... c5 {[%clk 0:03:01.9]}
4. d5 {[%clk 0:03:04.3]} 4... exd5 {[%clk 0:03:03.2]} 5. cxd5 {[%clk 0:03:05.9]}
5... d6 {[%clk 0:03:05.1]} 6. Nc3 {[%clk 0:03:07.2]} 6... g6 {[%clk 0:03:06.5]}
7. Bg2 {[%clk 0:03:08.8]} 7... Bg7 {[%clk 0:03:07.8]} 8. Nf3 {[%clk 0:03:10.5]}
8... O-O {[%clk 0:03:09.1]} 9. O-O {[%clk 0:03:12.1]} 9... Re8 {[%clk
0:03:00.2]} 10. Bf4 {[%clk 0:03:12.7]} 10... Bf5 {[%clk 0:02:58.1]} 11. Bg5
{[%clk 0:03:09.8]} 11... Nbd7 {[%clk 0:02:54.6]} 12. Nh4 {[%clk 0:03:05.6]}
12... h6 {[%clk 0:02:44.7]} 13. Nxf5 {[%clk 0:03:05.5]} 13... gxf5 {[%clk
0:02:44.1]} 14. Bf4 {[%clk 0:03:06.6]} 14... Ne5 {[%clk 0:02:44.6]} 15. Qd2
{[%clk 0:02:59]} 15... h5 {[%clk 0:02:34.1]} 16. Bg5 {[%clk 0:02:57.1]} 16...
Qd7 {[%clk 0:02:18.1]} 17. Bh3 {[%clk 0:02:57.3]} 17... b5 {[%clk 0:02:01.6]}
18. Qf4 {[%clk 0:02:58.4]} 18... Nfg4 {[%clk 0:01:57]} 19. f3 {[%clk 0:02:57.5]}
19... Ng6 {[%clk 0:01:58.2]} 20. Qd2 {[%clk 0:02:48.9]} 20... Ne3 {[%clk
0:01:53.1]} 21. Rf2 {[%clk 0:02:23.9]} 21... Bd4 {[%clk 0:01:52]} 22. Ne4 {[%clk
0:02:13.6]} 22... Ng4 {[%clk 0:01:30]} 23. Bxg4 {[%clk 0:02:09.5]} 23... hxg4
{[%clk 0:01:10]} 24. Qxd4 {[%clk 0:02:01.9]} 24... Rxe4 {[%clk 0:01:11.2]} 25.
Qf6 {[%clk 0:02:03]} 25... gxf3 {[%clk 0:01:08.8]} 26. exf3 {[%clk 0:02:02.2]}
26... Ree8 {[%clk 0:00:44.4]} 27. Bh6 {[%clk 0:02:03.3]} 1-0

[Event "*** Titled Tuesday Blitz"]
[Site "Chess.com"]
[Date "2019.12.03"]
[Round "3"]
[White "Bad4life"]
[Black "crazy_machine"]
[Result "0-1"]
[WhiteElo "2406"]
[BlackElo "2651"]
[TimeControl "180+2"]
[EndTime "13:35:07 PST"]
[Termination "crazy_machine won on time"]

1. e4 {[%clk 0:03:01.9]} 1... d6 {[%clk 0:03:00.9]} 2. d4 {[%clk 0:03:02.9]}
2... Nf6 {[%clk 0:03:02.4]} 3. Nc3 {[%clk 0:03:04.4]} 3... g6 {[%clk 0:03:03.9]}
4. f4 {[%clk 0:03:05.7]} 4... Bg7 {[%clk 0:03:05.1]} 5. Nf3 {[%clk 0:03:07.4]}
5... O-O {[%clk 0:03:06.6]} 6. e5 {[%clk 0:03:08.9]} 6... Nfd7 {[%clk
0:03:07.8]} 7. Bc4 {[%clk 0:03:10.1]} 7... Nb6 {[%clk 0:03:02.7]} 8. Bb3 {[%clk
0:03:11.4]} 8... Nc6 {[%clk 0:03:04]} 9. a4 {[%clk 0:03:12.2]} 9... Na5 {[%clk
0:03:04.9]} 10. Ba2 {[%clk 0:03:11.1]} 10... c5 {[%clk 0:02:58.5]} 11. Be3
{[%clk 0:03:11.9]} 11... Nac4 {[%clk 0:02:54.1]} 12. Bc1 {[%clk 0:03:09.6]}
12... cxd4 {[%clk 0:02:54.5]} 13. a5 {[%clk 0:03:00.7]} 13... dxc3 {[%clk
0:02:51.3]} 14. axb6 {[%clk 0:02:59.1]} 14... cxb2 {[%clk 0:02:52.5]} 15. Bxb2
{[%clk 0:02:46.8]} 15... Nxb2 {[%clk 0:02:53.4]} 16. Qd4 {[%clk 0:02:31]} 16...
Qxb6 {[%clk 0:02:48.2]} 17. Qxb6 {[%clk 0:02:30.1]} 17... axb6 {[%clk
0:02:49.7]} 18. Bxf7+ {[%clk 0:02:31.7]} 18... Kxf7 {[%clk 0:02:47.8]} 19. Rxa8
{[%clk 0:02:33.6]} 19... Nc4 {[%clk 0:02:43.9]} 20. Ng5+ {[%clk 0:02:33]} 20...
Kg8 {[%clk 0:02:43.9]} 21. exd6 {[%clk 0:02:29]} 21... exd6 {[%clk 0:02:41.4]}
22. O-O {[%clk 0:02:27.2]} 22... h6 {[%clk 0:02:29.6]} 23. Nf3 {[%clk
0:02:22.4]} 23... Bf5 {[%clk 0:02:28.3]} 24. Rxf8+ {[%clk 0:02:16.5]} 24... Kxf8
{[%clk 0:02:30.2]} 25. Ne1 {[%clk 0:02:12.1]} 25... Bd4+ {[%clk 0:02:25.3]} 26.
Kh1 {[%clk 0:02:10.8]} 26... Nd2 {[%clk 0:02:26.4]} 0-1

[Event "*** Titled Tuesday Blitz"]
[Site "Chess.com"]
[Date "2019.12.03"]
[Round "3"]
[White "raswi"]
[Black "INLOVEWITHF"]
[Result "0-1"]
[WhiteElo "2227"]
[BlackElo "2431"]
[TimeControl "180+2"]
[EndTime "13:35:08 PST"]
[Termination "INLOVEWITHF won by resignation"]

1. e4 {[%clk 0:03:01.9]} 1... e5 {[%clk 0:02:41.1]} 2. Nf3 {[%clk 0:03:02.6]}
2... Nc6 {[%clk 0:02:42.2]} 3. Bb5 {[%clk 0:03:04.1]} 3... a6 {[%clk 0:02:43.3]}
4. Ba4 {[%clk 0:03:05.6]} 4... d6 {[%clk 0:02:44.8]} 5. c3 {[%clk 0:03:04.4]}
5... f5 {[%clk 0:02:45.4]} 6. exf5 {[%clk 0:02:54.6]} 6... Bxf5 {[%clk
0:02:47.3]} 7. O-O {[%clk 0:02:55.5]} 7... Bd3 {[%clk 0:02:49]} 8. Re1 {[%clk
0:02:55.5]} 8... Be7 {[%clk 0:02:50.6]} 9. Re3 {[%clk 0:02:47.1]} 9... e4 {[%clk
0:02:50.3]} 10. Nd4 {[%clk 0:02:35.5]} 10... Nf6 {[%clk 0:02:21.3]} 11. Nxc6
{[%clk 0:02:33.8]} 11... bxc6 {[%clk 0:02:23.2]} 12. Bxc6+ {[%clk 0:02:33.9]}
12... Kf7 {[%clk 0:02:23.4]} 13. Na3 {[%clk 0:02:12.3]} 13... d5 {[%clk
0:02:22.5]} 14. Nc2 {[%clk 0:02:02.5]} 14... Rb8 {[%clk 0:02:11.7]} 15. Nd4
{[%clk 0:01:47.2]} 15... Qd6 {[%clk 0:02:06.3]} 16. b4 {[%clk 0:01:38.6]} 16...
h5 {[%clk 0:01:59]} 17. h3 {[%clk 0:01:18.3]} 17... Ng4 {[%clk 0:01:47.1]} 18.
Rg3 {[%clk 0:01:07.3]} 18... Nxf2 {[%clk 0:01:44.5]} 19. Qe1 {[%clk 0:01:07.3]}
19... Qxg3 {[%clk 0:01:44.7]} 20. Bxd5+ {[%clk 0:01:00.6]} 20... Kg6 {[%clk
0:01:41.8]} 21. Qxf2 {[%clk 0:00:56]} 21... Qxf2+ {[%clk 0:01:42.7]} 22. Kxf2
{[%clk 0:00:57.5]} 22... Rhf8+ {[%clk 0:01:34.9]} 23. Kg3 {[%clk 0:00:58.3]}
23... Bd6+ {[%clk 0:01:34.9]} 24. Kh4 {[%clk 0:00:59.5]} 24... Be7+ {[%clk
0:01:27.2]} 0-1

[Event "*** Titled Tuesday Blitz"]
[Site "Chess.com"]
[Date "2019.12.03"]
[Round "3"]
[White "pedromartinez91"]
[Black "Bagirova"]
[Result "1-0"]
[WhiteElo "2514"]
[BlackElo "2114"]
[TimeControl "180+2"]
[EndTime "13:35:11 PST"]
[Termination "pedromartinez91 won by resignation"]

1. Nf3 {[%clk 0:03:01.9]} 1... Nf6 {[%clk 0:02:58.9]} 2. g3 {[%clk 0:03:02.1]}
2... g6 {[%clk 0:02:59.9]} 3. Bg2 {[%clk 0:03:04]} 3... Bg7 {[%clk 0:03:01.8]}
4. O-O {[%clk 0:03:05.9]} 4... O-O {[%clk 0:03:02.9]} 5. d4 {[%clk 0:03:06.7]}
5... d6 {[%clk 0:03:04]} 6. c4 {[%clk 0:03:07.6]} 6... c6 {[%clk 0:03:02.8]} 7.
Nc3 {[%clk 0:03:08.3]} 7... Bg4 {[%clk 0:03:01.9]} 8. h3 {[%clk 0:03:08.1]} 8...
Bxf3 {[%clk 0:03:01.8]} 9. Bxf3 {[%clk 0:03:10]} 9... Nbd7 {[%clk 0:03:02.9]}
10. e3 {[%clk 0:03:11]} 10... e5 {[%clk 0:03:02.8]} 11. Bg2 {[%clk 0:03:12.5]}
11... Qe7 {[%clk 0:02:58.8]} 12. Re1 {[%clk 0:03:11.8]} 12... Nb6 {[%clk
0:02:58.6]} 13. b3 {[%clk 0:03:11.3]} 13... Rad8 {[%clk 0:02:58.7]} 14. Ba3
{[%clk 0:03:10.6]} 14... Qc7 {[%clk 0:02:49.5]} 15. dxe5 {[%clk 0:03:00.1]}
15... dxe5 {[%clk 0:02:46.4]} 16. Qe2 {[%clk 0:03:01.1]} 16... Rfe8 {[%clk
0:02:46.3]} 17. Rad1 {[%clk 0:03:01.8]} 17... a6 {[%clk 0:02:19.4]} 18. g4
{[%clk 0:02:56.7]} 18... Nbd7 {[%clk 0:02:10.3]} 19. g5 {[%clk 0:02:46.6]} 19...
Nh5 {[%clk 0:02:05.1]} 20. Ne4 {[%clk 0:02:40.5]} 20... Qa5 {[%clk 0:01:57.5]}
21. Qb2 {[%clk 0:02:32.7]} 21... f5 {[%clk 0:01:48.2]} 22. b4 {[%clk 0:02:29.2]}
22... Qc7 {[%clk 0:01:45]} 23. Nd6 {[%clk 0:02:30.2]} 23... Rf8 {[%clk
0:01:40.4]} 24. c5 {[%clk 0:02:29.8]} 24... f4 {[%clk 0:01:37]} 25. Qb3+ {[%clk
0:02:30.7]} 25... Kh8 {[%clk 0:01:34]} 26. Nf7+ {[%clk 0:02:31.9]} 26... Rxf7
{[%clk 0:01:33.6]} 27. Qxf7 {[%clk 0:02:33.8]} 27... f3 {[%clk 0:01:14.7]} 28.
Bxf3 {[%clk 0:02:33.6]} 28... Rf8 {[%clk 0:01:15]} 29. Qxd7 {[%clk 0:02:34.4]}
29... Qxd7 {[%clk 0:01:14]} 30. Rxd7 {[%clk 0:02:36.3]} 30... Rxf3 {[%clk
0:01:13.2]} 31. Bb2 {[%clk 0:02:37.3]} 31... Kg8 {[%clk 0:01:11.3]} 32. Kg2
{[%clk 0:02:37.2]} 32... Rf5 {[%clk 0:01:09.1]} 33. h4 {[%clk 0:02:33.7]} 33...
h6 {[%clk 0:01:09.4]} 34. gxh6 {[%clk 0:02:34.4]} 34... Bxh6 {[%clk 0:01:09.3]}
35. Red1 {[%clk 0:02:35.6]} 35... Nf6 {[%clk 0:01:05.1]} 36. Rxb7 {[%clk
0:02:35.1]} 36... Ng4 {[%clk 0:01:01.4]} 37. Rd8+ {[%clk 0:02:35.2]} 37... Bf8
{[%clk 0:01:01.7]} 38. Rbb8 {[%clk 0:02:36.8]} 38... Rxf2+ {[%clk 0:01:01.3]}
39. Kg3 {[%clk 0:02:37.7]} 1-0